Cogmind - Beta 16 @@@ ROGUE MODE // 2025.10.26 @ 17:03:28 Player: celerysam Result: Destroyed by RZ-V40(R) with Subdweller Laser Performance ------------- Evolutions (0) 0 Regions Visited (2) 400 Robots Destroyed (14) 70 Value Destroyed (236) 236 Prototype IDs (0) 0 Alien Tech Used (0) 0 Bonus (0) 0 TOTAL SCORE: 706 Bonus ------- None Cogmind --------- Core Integrity 0/250 Matter 300/300 Energy 249/250 System Corruption 1% Temperature Cool (6) Movement Rolling (145) Ox3 Location -10/Subcaves Parts ------- > --- POWER (1) -------- Ion Engine > --- PROPULSION (2) --- Compact Wheel > --- UTILITY (2) ------ High-capacity Storage Unit Medium Armor Plating > --- WEAPON (2) ------- Heavy Hammer > --- INVENTORY (20) --- Light Ion Engine Light Treads Light Treads Spiked Treads Aluminum Leg Aluminum Leg Wheel Wheel Subdweller Monowheel Terrain Scanner ECM Suite Medium Armor Plating Heavy Hammer Heavy Hammer Peak State ------------ > --- POWER ------------ Ion Engine > --- PROPULSION ------- Wheel Compact Wheel > --- UTILITY ---------- High-capacity Storage Unit Medium Armor Plating > --- WEAPON ----------- Small Laser Heavy Hammer > --- INVENTORY -------- Light Ion Engine Light Treads Light Treads Aluminum Leg Aluminum Leg Wheel Wheel Terrain Scanner ECM Suite Medium Armor Plating Heavy Hammer Heavy Hammer [Rating: 10] Favorites ----------- Power Ion Engine Engine Ion Engine Propulsion Aluminum Leg Leg Aluminum Leg Wheel Compact Wheel Utility High-capacity Storage Unit Storage High-capacity Storage Unit Protection Medium Armor Plating Weapon Small Laser Energy Gun Small Laser Ballistic Gun Assault Rifle Impact Weapon Heavy Hammer Build | -11 -10 -10 ------- Run | Yrd Mat Sub Slots Evolved . | . . . Power . | . . . Propulsion . | . . . Utility . | . . . Weapon . | . . . Parts Attached 13 | 6 5 2 Power 1 | 1 . . Engine 1 | 1 . . Core . | . . . Reactor . | . . . Propulsion 4 | 2 2 . Treads . | . . . Leg 2 | 2 . . Wheel 2 | . 2 . Hover . | . . . Flight . | . . . Utility 4 | 1 2 1 Device . | . . . Storage 2 | 1 1 . Processor . | . . . Hackware . | . . . Protection 2 | . 1 1 Artifact . | . . . Weapon 4 | 2 1 1 Energy Gun 2 | 1 1 . Energy Cannon . | . . . Ballistic Gun 1 | 1 . . Ballistic Cannon . | . . . Launcher . | . . . Special Weapon . | . . . Impact Weapon 1 | . . 1 Slashing Weapon . | . . . Piercing Weapon . | . . . Special Melee Weapon . | . . . Unidentified Prototypes . | . . . Parts Lost 5 | . 2 3 Power . | . . . Propulsion 1 | . . 1 Utility 1 | . 1 . Weapon 3 | . 1 2 Highest Loss Streak 2 | . 2 2 To Critical Strikes . | . . . Average Backups 10 | 4 9 13 Power . | . 1 1 Propulsion 5 | 3 4 6 Utility 2 | . 2 3 Weapon 1 | . 1 2 Tool/Special . | . . . Unused Backups 13 | . 1 12 Power 1 | . . 1 Propulsion 6 | . . 6 Utility 3 | . . 3 Weapon 3 | . 1 2 Tool/Special . | . . . Average Slot Usage (%) 92 | . 93 88 Engine 14 | . 14 14 Leg 9 | . 12 . Wheel 18 | . 15 26 Storage 14 | . 14 14 Protection 7 | . 8 5 Energy Gun 13 | . 13 12 Ballistic Gun 12 | . 14 8 Impact Weapon 1 | . . 5 Peak Build Rating 10 | 6 9 10 Average Rating 7 | 4 8 8 On Entrance 4 | . 6 7 Avg Prop Armor Cover (%) . | . . . Naked Turns . | . . . Heaviest Build 56 | 13 55 56 Greatest Support 26 | 20 26 26 Greatest Overweight (x) 3 | 1 2 3 Average Overweight (x) . | . . 1 Largest Inventory Capacity 20 | 8 20 20 Average Capacity 15 | 6 14 20 Most Carried 14 | 6 14 14 Average Carried 10 | 5 9 13 Final Capacity 20 | 8 20 20 Final Carried 14 | 6 14 14 Class Distribution -------------------- 100% | Mutant Dominant Class ---------------- Mutant | -10/Materials Mutant | -10/Subcaves Resources | -11 -10 -10 ----------- Run | Yrd Mat Sub Matter Collected 447 | 208 208 31 Remotely . | . . . Salvage Created 344 | . 295 49 Parts 27 | . 22 5 Haulers Intercepted . | . . . Recyclers Shooed . | . . . Parts Field Recycled . | . . . Retrieved Matter . | . . . Parts Self-Destructed 16 | . . 16 Prevented . | . . . Parts Restored . | . . . Kills | -11 -10 -10 ------- Run | Yrd Mat Sub Combat Hostiles Destroyed 11 | . 10 1 Guns 11 | . 10 1 Classes Destroyed 4 | . 3 1 Watcher 3 | . 3 . Swarmer 8 | . 8 . Grunt 2 | . 2 . Subdweller 1 | . . 1 Best Kill Streak 3 | . 3 1 Combat Bots Only 3 | . 3 1 Max Kills in Single Turn 1 | . 1 1 Gunslinging . | . . . Exploded . | . . . Melee . | . . . Uniques/NPCs Destroyed . | . . . Combat | -11 -10 -10 -------- Run | Yrd Mat Sub Hostile Shots Fired 104 | . 71 33 Missed 30 | . 21 9 Hits 74 | . 50 24 Projectile 74 | . 50 24 Critical Strikes 2 | . . 2 Damage Taken 948 | . 449 499 Core 253 | . 50 203 Absorbed by Shields . | . . . Core Remaining (%) 100 | 100 . . Volleys Fired 47 | . 42 5 Largest 2 | . 2 2 Hottest 60 | . 60 60 Shots Fired 85 | . 78 7 Gun 85 | . 78 7 Cannon . | . . . Launcher . | . . . Special . | . . . Kinetic 44 | . 42 2 Thermal 41 | . 36 5 Explosive . | . . . Electromagnetic . | . . . Robot Hit Streak 4 | . 4 3 Robot Miss Streak 3 | . 3 2 Penetration Max . | . . . Secondary Targets . | . . . Shots Hit Robots 56 | . 48 8 Core Hits 21 | . 18 3 Critical Kills . | . . . Critical Parts Destroyed . | . . . Critical Strikes . | . . . Melee Attacks 7 | . . 7 Impact 7 | . . 7 Slashing . | . . . Piercing . | . . . Sneak Attacks . | . . . Combat Hostiles . | . . . Follow-up Attacks . | . . . Damage Inflicted 754 | . 598 156 Guns 646 | . 598 48 Cannons . | . . . Explosions . | . . . Melee 108 | . . 108 Ramming . | . . . Kinetic 363 | . 349 14 Thermal 283 | . 249 34 Explosive . | . . . Electromagnetic . | . . . Impact 108 | . . 108 Slashing . | . . . Piercing . | . . . Highest Corruption 1 | . 1 1 Average Corruption 1 | . 1 1 Corruption Purged . | . . . Corruption Blocked . | . . . Overload Shots . | . . . Overflow Damage . | . . . Projectiles . | . . . Explosions . | . . . Melee . | . . . Knockbacks 1 | . . 1 Impact 1 | . . 1 Kinetic . | . . . Secondary . | . . . Self-Inflicted Damage . | . . . Shots . | . . . Rammed . | . . . Targets Rammed . | . . . Kicked . | . . . Crushed . | . . . Highest Temperature 63 | . 63 . Average Temperature 20 | . 20 . Received Heat Transfer 216 | . 96 120 Siege Activations . | . . . Martial Activations . | . . . Shielding Activations . | . . . Robots Disrupted . | . . . Combat Hostiles . | . . . Robots Corrupted . | . . . Combat Hostiles . | . . . Parts Fried . | . . . Impact Corruptions . | . . . Robots Melted . | . . . Combat Hostiles . | . . . Parts Melted . | . . . Heat Transferred 625 | . 550 75 Parts Sabotaged . | . . . Parts Stolen . | . . . Parts Stripped . | . . . Power Chain Reactions . | . . . Alert | -11 -10 -10 ------- Run | Yrd Mat Sub Maximum Alert Level . | . . . Low Security (%) 100 | 100 100 . Level 1 . | . . . Level 2 . | . . . Level 3 . | . . . Level 4 . | . . . Level 5 . | . . . High Security . | . . . Max Security . | . . . Peak Influence 77 | . 77 . Initial . | . . . Average 18 | . 20 . Influence Increases 288 | . 288 . Destroy 0b10 Robot/C 200 | . 200 . Destroy 0b10 Robot/NC 15 | . 15 . Destroy Leader 56 | . 56 . Destroy Structure 2 | . 2 . Lose Combat Pursuer 15 | . 15 . Influence Decreases 288 | . 288 . Time Decay 278 | . 278 . Lost Part 10 | . 10 . Squads Dispatched 3 | . 3 . Investigation 1 | . 1 . Extermination . | . . . Reinforcement 2 | . 2 . Assault . | . . . Garrison . | . . . Intercept . | . . . Searches Triggered . | . . . Construction Impeded . | . . . Haulers Reinforced . | . . . Active Scanning Responses . | . . . Cargo Convoy Interrupts . | . . . Stealth | -11 -10 -10 --------- Run | Yrd Mat Sub Distress Signals . | . . . Communications Jammed . | . . . Distress Signals . | . . . Times Spotted 26 | . 23 3 Peak Tracking Total 4 | . 4 2 Tactical Retreats 1 | . 1 . Traps | -11 -10 -10 ------- Run | Yrd Mat Sub Traps Triggered 2 | . 2 . Indirectly . | . . . Trap Hack Attempts . | . . . Triggered . | . . . Disarmed . | . . . Reprogrammed . | . . . Reused . | . . . Traps Extracted . | . . . Installed . | . . . Triggered . | . . . Machines | -11 -10 -10 ---------- Run | Yrd Mat Sub Machines Disabled . | . . . Max in Single Turn . | . . . Machines Repaired . | . . . Machines Dismantled . | . . . Machines Sabotaged . | . . . Overloaded Fab Kills . | . . . Hacking | -11 -10 -10 --------- Run | Yrd Mat Sub Machines Accessed . | . . . Terminals . | . . . Fabricators . | . . . Repair Stations . | . . . Recycling Units . | . . . Scanalyzers . | . . . Garrison Access . | . . . Total Hacks . | . . . Successful . | . . . Failed . | . . . Catastrophic . | . . . Database Lockouts . | . . . Manual . | . . . Terminals . | . . . Fabricators . | . . . Repair Stations . | . . . Recycling Units . | . . . Scanalyzers . | . . . Garrison Access . | . . . Terminal Hacks . | . . . Fabricator Hacks . | . . . Repair Station Hacks . | . . . Recycling Unit Hacks . | . . . Scanalyzer . | . . . Garrison Access Hacks . | . . . Unauthorized Hacks . | . . . Terminals . | . . . Fabricators . | . . . Repair Stations . | . . . Recycling Units . | . . . Scanalyzers . | . . . Garrison Access . | . . . Data Cores Recovered . | . . . Used . | . . . Hacking Detections . | . . . Full Trace Events . | . . . Feedback Events . | . . . Feedback Blocked . | . . . Robot Schematics Acquired . | . . . Robots Built . | . . . Authchips . | . . . Time . | . . . Total Robot Build Rating . | . . . Part Schematics Acquired . | . . . Parts Built . | . . . Authchips . | . . . Time . | . . . Total Part Build Rating . | . . . Part Studies Acquired . | . . . Parts Repaired . | . . . Time . | . . . Parts Recycled . | . . . Recycled Matter . | . . . Retrieved Matter . | . . . Retrieved Components . | . . . Parts Scanalyzed . | . . . Part Schematics Acquired . | . . . Parts Damaged . | . . . Bothacking | -11 -10 -10 ------------ Run | Yrd Mat Sub Used RIF Installer . | . . . Robots Hacked . | . . . Non-combat . | . . . Combat . | . . . Robot Hacks Applied . | . . . Relay Couplers Released . | . . . Fabnet Peak Effective % . | . . . Robots Rewired . | . . . Allies Hacked . | . . . Hacks Repelled . | . . . Allies | -11 -10 -10 -------- Run | Yrd Mat Sub Total Allies . | . . . Largest Group . | . . . Highest-Rated Group . | . . . Highest-Rated Ally . | . . . Total Orders . | . . . Ally Attacks . | . . . Total Damage . | . . . Kills . | . . . Allies Corrupted . | . . . Allies Melted . | . . . Intel | -11 -10 -10 ------- Run | Yrd Mat Sub Active Infowar (turns) . | . . . Robot Analysis Total . | . . . Derelict Logs Recovered 1 | . . 1 Drone Launches . | . . . Drone Recoveries . | . . . Exploration | -11 -10 -10 ------------- Run | Yrd Mat Sub Turns Passed 1200 | 69 873 258 Spaces Moved 831 | 50 579 202 Core 8 | 8 . . Treads . | . . . Legs 289 | 42 247 . Wheels 534 | . 332 202 Hover . | . . . Flight . | . . . Fastest Speed 50 | 50 105 105 Average Speed 113 | 109 114 110 Slowest Speed 145 | 120 120 145 Overloaded Moves . | . . . Propulsion Burnouts . | . . . Robots Hopped . | . . . Potential Cave-ins . | . . . Cave-ins Triggered . | . . . Exploration Rate (%) 37 | 4 95 12 Regions Visited 2 Branch Regions 1 Pre-discovered Areas 1 | . . 1 Known Exits Taken . | . . . Unknown Exits Taken 2 | 1 1 . Scrap Searched 1 | . . 1 Spaces Dug . | . . . Terrain Destroyed . | . . . Melee . | . . . Projectile . | . . . AOE . | . . . Terrain Rammed . | . . . Walls Destroyed . | . . . Machines Disabled . | . . . Actions | -11 -10 -10 --------- Run | Yrd Mat Sub Total 991 | 61 712 218 Wait 74 | . 74 . Move 829 | 49 578 202 Hop . | . . . Pick Up 19 | 6 11 2 Fast Attach 6 | 6 . . Attach 4 | . 2 2 Detach . | . . . Swap 3 | . 3 . Drop 2 | . 2 . Fire 47 | . 42 5 Melee 7 | . . 7 Ram . | . . . Kick . | . . . Crush . | . . . Escape Stasis . | . . . Rewire . | . . . Trap . | . . . Miscellaneous . | . . . Route ------- -11/Scrapyard -10/Materials (discovered 6 exits: [*Mat x3] / [*Min x2] / [*Sub]) -10/Subcaves History --------- Turn | Location | Event 11 | -11/Scrapyard | Discovered new exit (range 15) 70 | -11/Scrapyard | Entered Materials 264 | -10/Materials | Discovered new exit (range 9) 314 | -10/Materials | Build established: Mutant 351 | -10/Materials | Discovered new exit (range 12) 377 | -10/Materials | Discovered new exit (range 15) 572 | -10/Materials | Discovered new exit (range 15) 875 | -10/Materials | Discovered new exit (range 16) 938 | -10/Materials | Discovered new exit (range 5) 943 | -10/Materials | Entered Subcaves 944 | -10/Subcaves | Approached by a straggling Scientist 1022 | -10/Subcaves | Learned location of Recycling (-7) 1088 | -10/Subcaves | Ambushed by Subdweller buried in earth 1192 | -10/Subcaves | Core integrity fell below 50% 1199 | -10/Subcaves | Core integrity fell below 20% 1201 | -10/Subcaves | Destroyed by RZ-V40(R) with Subdweller Laser Last Messages --------------- 01074_ Acquired 3 matter. 01080_ Acquired 7 matter. 01088_ LC-XS9(R) comes tumbling out of the earth. 01094_ Assault Rifle destroyed. 24-COK(c): "I think it's somewhere northeast of here" 01097_ LC-XS9(R) destroyed. 01104_ Acquired Sub. Monowheel. 01113_ Acquired 6 matter. 01120_ Acquired 15 matter. 01129_ Searching scrap... 01129_ Found Spk. Treads. 01129_ Found 43 Matter. 01131_ Acquired Spk. Treads. 24-COK(c): "I think it's somewhere northeast of here" 01178_ RZ-V40(R) knocked back. 01181_ Wheel destroyed. 01184_ Sml. Laser destroyed. Map ----- +----------------------------------------------------+ | ?????????????????## #????????????????????????????? | | ????????????????## #?????????????????????????????? | | ???????????????## ##?????????????????????????????? | | ????????????#### ##?????????????????????????????? | | ????????????#%#!## ##????????????????????????????? | | ????????????#&&!## ##???????????????????????????? | | ???????????##&######"#???????????????????????????? | | ????????####%##??## ##???????????????????????????? | | ????????# # ##??## ##????????????????????????????? | | ????????# %##??## ##?????????????????????????????? | | ???????## ##### ##??????????????????????????????? | | ??????##%### # ##???????????????????????????????? | | ?????## ##??## ##????????????????????????????????? | | ????##%##??## ##?????????????????????????????????? | | ????# ###### ##??????????????????????????????????? | | ????# #?# ## ##??????????????????????????????????? | | ????# ###% #?##???????????????????????????????? | | ????## ### ##?# ###?####???????????????????????? | | ???## ##?# #### "##"# ##??????????????????????? | | ??## #??## "" "" #??????????????????????? | | ###"# #?## "" "" # #??????????????????????? | | ## #### ## "### ### ??????????????????????? | | #???#" ### "##" ##?""##?????????????????????? | | ####???####?# ### #?? ""#?????????????????????? | | ????????????##*% ##### ### ""##???????????????? | | ?????????????# ##" R @ u"" ""??????????????? | | ?????????????#### R " "" ?????????????? | | ????????????????#### ## """ "" #??????????????? | | ???????????????????#### """ "" ###??????????????? | | ??????????????????????##"""######????????????????? | | ???????????????????????#####?????????????????????? | | ?????????????????????????????????????????????????? | | ?????????????????????????????????????????????????? | | ?????????????????????????????????????????????????? | | ?????????????????????????????????????????????????? | | ?????????????????????????????????????????????????? | | ?????????????????????????????????????????????????? | | ?????????????????????????????????????????????????? | | ?????????????????????????????????????????????????? | | ?????????????????????????????????????????????????? | | ?????????????????????????????????????????????????? | | ?????????????????????????????????????????????????? | | ?????????????????????????????????????????????????? | | ?????????????????????????????????????????????????? | | ?????????????????????????????????????????????????? | | ?????????????????????????????????????????????????? | | | | | | | | | +----------------------------------------------------+ Best States ------------- Heat Dissipation 25 Energy Generation 10 Energy Capacity 250 Matter Stores 300 Matter Capacity 300 Sight Range 16 Terrain Scan Density 10 Armor Coverage 225 Evasion (%) 55 Item Schematics ----------------- None Robot Schematics ------------------ None Fabricated ------------ Nothing Repaired ---------- Nothing Studied --------- None Alien Tech Used ----------------- None Achievements -------------- None Challenges ------------ None Game ------ Seed CobblerGravjetDerivative Manual? 0 Play Time 00:10:14 Cumulative 274.0 hours Start 2025.10.26 @ 16:42:15 End 2025.10.26 @ 17:03:28 Sessions 1 Manual Loads 0 Difficulty Rogue Special Mode None Game No. 435 Rogue 435 Adventurer 0 Explorer 0 Win Type - Total 1 Types 1/0/0/0/0/0/0/0/0/0 Lore% 64 Gallery% 62 Achievement% 26 Wizard Run 0 Options --------- Layout 1 ASCII 0 Keyboard 0 Movement Mouse Keybinds 0 Fullscreen 2 Font 24/Smallcaps Map View 50x35 Zoom Use 0% Tactical HUD 1 Map Filters NONE Filters NONE Steam 1 RUN: 084fdd97-6e86-48d8-bee7-6a21c364ba24